[Event "Super United Croatia GCT Blitz 2022"]
[Site "Zagreb"]
[Date "2022.07.23"]
[Round "9"]
[White "Van Foreest, Jorden"]
[Black "Firouzja, Alireza"]
[Result "0-1"]
[ECO "B07"]
[WhiteElo "2678"]
[BlackElo "2793"]
[Annotator "TA"]
[PlyCount "98"]
[EventDate "2022.07.20"]
[EventType "tourn"]
[EventCountry "CRO"]
[SourceTitle "playchess.com"]
[Source "ChessBase"]
[SourceQuality "1"]
[TimeControl "300+2"]

{[%evp 10,98,50,34,46,26,39,42,48,0,27,31,41,56,114,110,101,-12,-16,-9,-8,-11,-4,-6,-4,-11,-16,-19,-12,-92,-90,-132,-124,-132,-120,-142,-82,-75,-56,-82,-78,-179,-158,-166,-158,-160,-177,-184,-156,-156,0,-250,-248,-257,-257,-258,-248,-270,-263,-277,-254,-275,-267,-273,-259,-272,-272,-268,-265,-282,-285,-311,-308,-369,-279,-277,-213,-1133,-1133,-1133,-1091,-1027,-978,-29969,-29975,-29975,-29976,-29981,-29982,-29987,-29988]} 1. e4 {[%emt 0:00:02]} d6 {[%emt 0:00:00]} 2. d4 {[%emt 0:00:02]} Nf6 {[%emt 0:00:02]} 3. Nc3 {[%emt 0:00:01]} e5 {[%emt 0:00:01]} 4. dxe5 {[%emt 0:00:08]} dxe5 {[%emt 0:00:00]} 5. Qxd8+ {[%emt 0:00:02]} Kxd8 {[%emt 0:00:01]} 6. Bc4 {[%emt 0:00:06]} Ke8 $1 {[%emt 0:00:05][%mdl 4] now scores much better than the old 6...Be6. B07: Pirc Defence: Miscellaneous Systems.} 7. f4 {[%emt 0:00:01]} Bd6 {[%emt 0:00:06]} 8. Nf3 {[%emt 0:00:06]} Nc6 {[%emt 0:00:01] [#] White is slightly better.} 9. O-O $146 {[%emt 0:00:42]} (9. Nb5 $14) ({Predecessor:} 9. f5 Bb4 10. Bd3 Bxf5 11. exf5 e4 12. Bg5 exd3 13. O-O-O Bxc3 14. bxc3 dxc2 15. Kxc2 {1-0 (39) Sarana,A (2685)-Bortnyk,O (2604) Chess.com INT 2022}) 9... exf4 {[%emt 0:00:07]} 10. e5 {[%emt 0:00:22]} Bc5+ {[%emt 0:00:13]} 11. Kh1 {[%emt 0:00:01]} Nh5 {[%emt 0:00:26]} ({Black should play} 11... Ng4 $14) 12. Nd5 $16 {[%emt 0:00:04][%csl LRc7,LRf4]} Bb6 {[%emt 0:00:01]} 13. Nxf4 {[%emt 0:00:33]} (13. Bxf4 $16 Na5 14. Bd3) 13... Nxf4 $11 {[%emt 0:00:03]} 14. Bxf4 {[%emt 0:00:02]} Be6 {[%emt 0:00:01]} 15. Bxe6 {[%emt 0:00:15]} fxe6 {[%emt 0:00:00]} 16. Rad1 {[%emt 0:00:03]} h6 {[%emt 0:00:14]} 17. h4 {[%emt 0:00:06]} Rf8 {[%emt 0:00:03]} 18. g3 {[%emt 0:00:04]} Nb4 {[%emt 0:00:20]} 19. c4 {[%emt 0:00:40]} (19. c3 $11 {remains equal.} Nd5 20. Bd2) 19... Nxa2 $17 {[%emt 0:00:23]} 20. Nd2 {[%emt 0:00:25]} Nb4 {[%emt 0:00:16]} 21. Ne4 {[%emt 0:00:02]} Nc6 {[%emt 0:00:02]} 22. Kg2 {[%emt 0:00:24]} Rd8 {[%emt 0:00:31]} ({Better is} 22... Ke7 23. c5 Ba5) 23. Rxd8+ {[%emt 0:00:02]} Kxd8 {[%emt 0:00:00]} 24. c5 {[%emt 0:00:24]} Ba5 {[%emt 0:00:01]} 25. h5 {[%emt 0:00:02]} (25. Bxh6 $17 Rxf1 26. Bg5+ Kd7 27. Kxf1) 25... Ke8 {[%emt 0:00:19]} 26. g4 {[%emt 0:00:04]} Bb4 {[%emt 0:00:11]} 27. g5 {[%emt 0:00:11]} hxg5 {[%emt 0:00:03]} 28. Nxg5 {[%emt 0:00:01]} Ke7 {[%emt 0:00:04]} ({But not} 28... Bxc5 29. Nxe6 Bd4 30. Nxf8 Kxf8 31. Be3+ Ke7 32. Bxd4 Nxd4 33. Ra1 $18) 29. Ne4 {[%emt 0:00:03]} Ke8 $2 {[%emt 0:00:12]} (29... Kd7 $17 {Threatens to win with ...Rf5.} 30. Rd1+ Ke8) 30. h6 $2 {[%emt 0:00:13]} (30. Ng5 $1 $11 {and White stays safe.}) 30... gxh6 $19 {[%emt 0:00:03]} 31. Nf6+ {[%emt 0:00:02]} Kd8 {[%emt 0:00:02]} 32. Bxh6 {[%emt 0:00:04]} ({Of course not} 32. Rd1+ Kc8 33. Bxh6 Rd8 34. Rxd8+ Kxd8 $19) 32... Rf7 {[%emt 0:00:04]} 33. Bg5 {[%emt 0:00:06]} Kc8 {[%emt 0:00:05]} 34. Rh1 {[%emt 0:00:03] aiming for Rh8+.} Bxc5 {[%emt 0:00:02]} 35. Ne4 {[%emt 0:00:09]} Bb4 {[%emt 0:00:20]} 36. Bf6 {[%emt 0:00:02]} Rf8 {[%emt 0:00:06]} 37. Ng5 {[%emt 0:00:05]} Re8 {[%emt 0:00:08]} 38. Kf3 {[%emt 0:00:01]} a5 {[%emt 0:00:09]} 39. Ke4 {[%emt 0:00:01]} a4 {[%emt 0:00:03]} 40. Rc1 {[%emt 0:00:10]} Na5 {[%emt 0:00:08]} 41. Rd1 {[%emt 0:00:03][%cal Og5e6]} Nc4 {[%emt 0:00:04]} 42. Nxe6 {[%emt 0:00:07]} Nxb2 {[%emt 0:00:02]} 43. Rd4 {[%emt 0:00:01] [#]} (43. Rb1 a3 44. Ng7) 43... a3 $1 {[%emt 0:00:07]} 44. Ng7 {[%emt 0:00:03] [#]} Rg8 $1 {[%emt 0:00:19] ...a2 is the strong threat.} 45. e6 {[%emt 0:00:19]} (45. Rxb4 a2) 45... a2 {[%emt 0:00:00]} 46. Rxb4 {[%emt 0:00:03] [#]} a1=Q $1 {[%emt 0:00:03] Black mates.} 47. Rxb2 {[%emt 0:00:01]} Qf1 {[%emt 0:00:11]} 48. Ke5 {[%emt 0:00:04]} Rf8 {[%emt 0:00:03]} 49. Nf5 {[%emt 0:00:02]} Qe1+ {[%emt 0:00:03] Weighted Error Value: White=0.53/Black=0.14 (very precise)} 0-1

[Event "Super United Croatia GCT Blitz 2022"]
[Site "Zagreb"]
[Date "2022.07.24"]
[Round "10"]
[White "So, Wesley"]
[Black "Mamedyarov, Shakhriyar"]
[Result "1-0"]
[ECO "C42"]
[WhiteElo "2773"]
[BlackElo "2759"]
[Annotator "TA"]
[PlyCount "101"]
[EventDate "2022.07.20"]
[EventType "tourn"]
[EventCountry "CRO"]
[SourceTitle "playchess.com"]
[Source "ChessBase"]
[SourceQuality "1"]
[TimeControl "300+2"]

{[%evp 15,101,12,31,13,18,11,22,21,10,0,28,7,10,-44,71,72,108,75,45,47,45,37,47,48,68,70,112,100,98,58,69,13,66,64,92,70,210,193,202,220,179,188,264,256,262,223,205,214,221,227,313,297,318,314,395,384,372,381,355,355,365,360,1334,396,1058,1058,999,972,1460,1460,1297,1277,1448,1422,29969,29968,12798,2303,12798,2562,29968,29960,29979,29980,29981,29981,29985,29986]} 1. e4 {[%emt 0:00:01]} e5 {[%emt 0:00:00]} 2. Nf3 {[%emt 0:00:01]} Nf6 {[%emt 0:00:01]} 3. Nxe5 {[%emt 0:00:08]} d6 {[%emt 0:00:01]} 4. Nf3 {[%emt 0:00:01]} Nxe4 {[%emt 0:00:01]} 5. Nc3 {[%emt 0:00:01]} Nxc3 {[%emt 0:00:01]} 6. dxc3 {[%emt 0:00:01]} Be7 {[%emt 0:00:02]} 7. Be3 {[%emt 0:00:01]} O-O {[%emt 0:00:01]} 8. Qd2 {[%emt 0:00:00]} Bf5 {[%emt 0:00:03]} 9. Nd4 $5 {[%emt 0:00:08][%mdl 4] A promising side line. C42: Petroff Defence: 3 Nxe5 and unusual White 3rd moves.} Bd7 {[%emt 0:00:03]} 10. O-O-O {[%emt 0:00:07]} Nc6 {[%emt 0:00:02]} 11. Kb1 {[%emt 0:00:08] The position is equal.} Re8 {[%emt 0:00:01] [#]} 12. h4 $146 {[%emt 0:00:08]} ({Predecessor:} 12. h3 Nxd4 13. cxd4 c6 14. g4 a5 15. Bd3 Be6 16. f4 b5 17. f5 Bd5 18. Rhg1 {½-½ (26) Krupa,B (2173)-Sukhanitskij,S (1948) LSS email 2011}) 12... a6 {[%emt 0:00:09]} 13. h5 {[%emt 0:00:11]} h6 {[%emt 0:00:03]} 14. Be2 {[%emt 0:00:09]} (14. Nf3 $11) 14... Ne5 {[%emt 0:00:15] [#]} (14... Bg5 $15 {stays ahead.}) 15. g4 $1 $16 {[%emt 0:00:10]} b5 {[%emt 0:00:51]} (15... Nxg4 $2 16. Bxg4 Bxg4 17. Rdg1 $18) 16. Rdg1 {[%emt 0:00:12]} c5 {[%emt 0:00:12]} 17. Nf5 {[%emt 0:00:07]} Bxf5 {[%emt 0:00:19]} 18. gxf5 {[%emt 0:00:01] And now Bxh6 would win.} Kh7 {[%emt 0:00:01]} 19. Qd5 {[%emt 0:00:36]} Bf6 {[%emt 0:00:05]} 20. Rd1 {[%emt 0:00:21]} b4 {[%emt 0:00:49]} 21. cxb4 {[%emt 0:00:20]} Qb8 {[%emt 0:00:17]} 22. Bd2 {[%emt 0:00:43]} cxb4 {[%emt 0:00:12]} 23. Rhg1 {[%emt 0:00:15]} (23. Rhe1 $14) 23... Re7 {[%emt 0:00:29]} (23... Qc7 $11) 24. Bc1 {[%emt 0:00:37][%cal Bd2c1,Bc1f4,Bf4e3][%mdl 32]} Nd7 {[%emt 0:00:14]} 25. Bf3 {[%emt 0:00:07] White is more active.} Nb6 {[%emt 0:00:02] This move loses the game for Black.} (25... Ra7 $14) 26. Qxd6 $18 {[%emt 0:00:05]} Qxd6 {[%emt 0:00:02]} 27. Rxd6 {[%emt 0:00:01]} Rb8 {[%emt 0:00:00]} 28. b3 {[%emt 0:00:03] Inhibits Nc4.} a5 {[%emt 0:00:06]} (28... Nd7 $142 29. a4 (29. Rxa6 Nc5 $16) 29... a5) 29. Bf4 {[%emt 0:00:08][%cal Od6f6] [#] Hoping for Rxf6!} Rbe8 {[%emt 0:00:09]} 30. Be3 {[%emt 0:00:11] This bishop pair is nice.} ({Inferior is} 30. Rxb6 Re1+ 31. Rxe1 Rxe1+ 32. Bc1 Bg5 $11) 30... Nc8 {[%emt 0:00:13]} 31. Rd5 {[%emt 0:00:03]} Re5 {[%emt 0:00:02]} 32. Rgd1 {[%emt 0:00:01]} Ne7 {[%emt 0:00:07]} 33. Rxe5 {[%emt 0:00:05]} Bxe5 {[%emt 0:00:01]} 34. Bb6 {[%emt 0:00:06]} Nxf5 {[%emt 0:00:21]} 35. Be4 {[%emt 0:00:01]} g6 {[%emt 0:00:01][%cal Oe5d4]} 36. Bxf5 {[%emt 0:00:01]} gxf5 {[%emt 0:00:01]} 37. Bxa5 {[%emt 0:00:03][%mdl 4096] Endgame KRB-KRB} Rb8 {[%emt 0:00:20]} 38. Rd5 {[%emt 0:00:02] Inhibits Rb5.} f6 {[%emt 0:00:01]} (38... Bg7 39. a3 (39. Rxf5 Bc3 $16) 39... bxa3 40. Rxf5 Re8) 39. Bc7 $2 {[%emt 0:00:10]} (39. Rd7+ Kg8 40. a4) 39... Re8 $2 {[%emt 0:00:07]} (39... Bxc7 40. Rd7+ Kg8) 40. Rd7+ {[%emt 0:00:04]} Kg8 {[%emt 0:00:01]} 41. Rd8 {[%emt 0:00:01]} Rxd8 {[%emt 0:00:02]} 42. Bxd8 {[%emt 0:00:01] KB-KB} Kf7 {[%emt 0:00:01]} 43. Ba5 {[%emt 0:00:02]} Bd6 {[%emt 0:00:01]} 44. c3 {[%emt 0:00:01]} bxc3 {[%emt 0:00:01]} 45. Bxc3 {[%emt 0:00:01]} Ke6 {[%emt 0:00:00]} 46. Kc2 {[%emt 0:00:01]} (46. f3 $142 Bc7 47. Kc2) 46... f4 {[%emt 0:00:01]} 47. Kd3 {[%emt 0:00:01]} (47. f3 $142 Bb8 48. Kd3) 47... Kf5 {[%emt 0:00:01]} 48. f3 {[%emt 0:00:03] White mates.} Kg5 {[%emt 0:00:01]} 49. a4 {[%emt 0:00:02][%cal Ba2a4,Ba4a5,Ba5a6][%mdl 32]} Kxh5 {[%emt 0:00:04]} 50. a5 {[%emt 0:00:01]} Kg5 {[%emt 0:00:03]} 51. a6 {[%emt 0:00:01] Weighted Error Value: White=0.30/Black=0.66} 1-0

[Event "Super United Croatia GCT Blitz 2022"]
[Site "Zagreb"]
[Date "2022.07.24"]
[Round "10"]
[White "Dominguez Perez, Leinier"]
[Black "Nepomniachtchi, Ian"]
[Result "0-1"]
[ECO "C42"]
[WhiteElo "2754"]
[BlackElo "2766"]
[Annotator "TA"]
[PlyCount "124"]
[EventDate "2022.07.20"]
[EventType "tourn"]
[EventCountry "CRO"]
[SourceTitle "playchess.com"]
[Source "ChessBase"]
[SourceQuality "1"]
[TimeControl "300+2"]

{[%evp 18,124,31,19,16,12,16,19,20,14,74,85,73,46,44,11,11,0,0,0,0,0,0,0,0,-10,-14,-13,-9,-20,0,-35,-22,-32,-35,-36,-44,-70,-63,-63,-68,-69,-70,-70,-60,-62,-66,-106,-106,-108,-105,-427,-427,-387,-145,-240,-114,-121,-8,-10,-8,-8,-8,-185,-8,-8,-8,-8,0,-29965,-29966,-29966,-29967,-29967,-29968,-29968,-29969,-29968,-29965,-29970,-29971,-29971,-29972,-29972,-29972,-29970,-29971,-29971,-29971,-29973,-29969,-29966,-29967,-29980,-29981,-29981,-29982,-29982,-145,-145,-145,-145,-145,-29973,-29976,-29977,-29979,-29979,-29979]} 1. e4 {[%emt 0:00:01]} e5 {[%emt 0:00:01]} 2. Nf3 {[%emt 0:00:01]} Nf6 {[%emt 0:00:02]} 3. Nxe5 {[%emt 0:00:03]} d6 {[%emt 0:00:00]} 4. Nf3 {[%emt 0:00:01]} Nxe4 {[%emt 0:00:02]} 5. d4 {[%emt 0:00:05]} d5 {[%emt 0:00:01]} 6. Bd3 {[%emt 0:00:02]} Bd6 {[%emt 0:00:01]} 7. O-O {[%emt 0:00:02]} O-O {[%emt 0:00:03]} 8. c4 {[%emt 0:00:03]} c6 {[%emt 0:00:00]} 9. Re1 {[%emt 0:00:11]} Bf5 {[%emt 0:00:06]} 10. Qb3 {[%emt 0:00:03]} Qd7 {[%emt 0:00:10] C42: Petroff Defence: 3 Nxe5 and unusual White 3rd moves.} 11. Nc3 {[%emt 0:00:02]} Nxc3 {[%emt 0:00:36]} 12. Bxf5 {[%emt 0:00:02]} Qxf5 {[%emt 0:00:01] The position is equal.} 13. bxc3 {[%emt 0:00:01]} (13. Qxb7 {looks sharper.} Qd7 14. Qxd7 Nxd7 15. c5) 13... Qd7 $5 {[%emt 0:00:35][%mdl 4] Exploring less charted territory.} (13... b6 $11 {keeps the balance.}) 14. cxd5 $16 {[%emt 0:00:34]} cxd5 {[%emt 0:00:02]} 15. Rb1 {[%emt 0:00:06][%cal Ba1b1,Bb1b5,Bb5d5,Bd5h5,Bh5h4][%mdl 32]} b6 {[%emt 0:00:05]} 16. Qb5 {[%emt 0:00:01]} (16. g3 $5 {[%cal Rb3d5]}) 16... Rd8 {[%emt 0:00:49]} 17. g3 {[%emt 0:00:51]} Qxb5 {[%emt 0:00:05]} 18. Rxb5 {[%emt 0:00:01]} Na6 {[%emt 0:00:02][%cal Bb8a6,Ba6c7,Bc7d5,Bd5c3][%mdl 32] [#]} 19. Rxd5 $146 {[%emt 0:00:13]} ({Predecessor:} 19. Bd2 Nc7 20. Rb2 b5 21. Reb1 Kf8 22. h4 Rab8 23. h5 Rb6 24. Kg2 Re8 25. Ra1 {½-½ (36) Rallabandi,P (2501)-Coleman,P (2610) ICCF email 2021}) 19... Nc7 {[%emt 0:00:01] Against Rb5} 20. Rh5 {[%emt 0:00:13]} Rac8 {[%emt 0:00:02]} 21. Bd2 {[%emt 0:00:52]} g6 {[%emt 0:00:15]} 22. Rh4 {[%emt 0:00:01]} Nd5 {[%emt 0:00:01]} 23. Rc1 {[%emt 0:01:04]} Rc4 {[%emt 0:00:04]} 24. Re4 {[%emt 0:00:02]} Rdc8 {[%emt 0:00:14]} 25. Ne5 {[%emt 0:00:12]} Nxc3 {[%emt 0:01:03][%cal Of7f6]} 26. Nxc4 {[%emt 0:00:19]} Nxe4 {[%emt 0:00:01]} 27. Nxd6 {[%emt 0:00:08]} Rxc1+ {[%emt 0:00:01]} 28. Bxc1 {[%emt 0:00:01]} Nxd6 $15 {[%emt 0:00:00][%mdl 4096] Endgame KB-KN} 29. Kf1 {[%emt 0:00:23]} Kf8 {[%emt 0:00:03]} 30. Ke2 {[%emt 0:00:05]} Ke7 {[%emt 0:00:01]} 31. d5 {[%emt 0:00:06]} Ne4 $1 {[%emt 0:00:11]} 32. Ke3 {[%emt 0:00:04]} Nc3 {[%emt 0:00:02][%csl LRa2,LRd5] Black is more active.} 33. Ba3+ {[%emt 0:00:03]} Kd7 {[%emt 0:00:03]} 34. Kf4 $2 {[%emt 0:00:09][%mdl 8192]} (34. Bc1 $17 {is tougher.}) 34... Nxd5+ $19 {[%emt 0:00:01]} 35. Kg5 {[%emt 0:00:01]} h5 $2 {[%emt 0:00:32]} (35... Nc3 $19 36. Kf4 Nxa2) 36. f3 {[%emt 0:00:01]} (36. f4 $17) 36... Ke6 {[%emt 0:00:14]} (36... Nc3 $19 {has better winning chances.} 37. g4 Nxa2 38. gxh5 gxh5 39. Kxh5 b5) 37. g4 $17 {[%emt 0:00:00]} hxg4 {[%emt 0:00:17]} (37... Nc3 $1 $17 {Hoping for ...hxg4.} 38. gxh5 gxh5 39. Kxh5 Nxa2) 38. fxg4 $11 {[%emt 0:00:01]} Nc3 {[%emt 0:00:01] Threatens to win with ...b5.} 39. h4 {[%emt 0:00:01]} Ne4+ {[%emt 0:00:04]} 40. Kh6 $2 {[%emt 0:00:01]} (40. Kf4 $11 Nc3 41. h5) 40... Nf2 $2 {[%emt 0:00:06]} (40... f5 $1 $19 {[%cal Rf5g4]} 41. Bc1 fxg4 42. Kxg6 g3) 41. Kg5 {[%emt 0:00:02]} Nh3+ {[%emt 0:00:03]} 42. Kh6 {[%emt 0:00:01]} f5 {[%emt 0:00:10]} 43. Kxg6 $2 {[%emt 0:00:05][%mdl 8192]} (43. h5 $11 gxh5 44. g5) 43... fxg4 {[%emt 0:00:01]} 44. Bc1 {[%emt 0:00:01]} g3 {[%emt 0:00:02]} 45. h5 {[%emt 0:00:02]} g2 {[%emt 0:00:02]} 46. Be3 {[%emt 0:00:00]} g1=Q+ {[%emt 0:00:08]} 47. Bxg1 {[%emt 0:00:01]} Nxg1 {[%emt 0:00:01] KN-KPP} 48. h6 {[%emt 0:00:03]} Nf3 $1 {[%emt 0:00:01]} 49. h7 {[%emt 0:00:03]} Ne5+ {[%emt 0:00:00]} 50. Kg5 {[%emt 0:00:03]} Nf7+ {[%emt 0:00:02]} 51. Kf4 {[%emt 0:00:01]} Nh8 {[%emt 0:00:02]} 52. Ke4 {[%emt 0:00:01]} a6 {[%emt 0:00:04]} 53. a4 {[%emt 0:00:02]} Ng6 {[%emt 0:00:02]} 54. Kd4 {[%emt 0:00:00]} Kd6 $1 {[%emt 0:00:00]} 55. Kc4 {[%emt 0:00:02]} Ke5 {[%emt 0:00:03]} 56. Kc3 {[%emt 0:00:12]} Kd5 {[%emt 0:00:02]} 57. Kd3 {[%emt 0:00:01]} a5 $2 {[%emt 0:00:02]} (57... b5 {mates} 58. Kc3 Nh8 59. Kb4 Kc6 60. a5 Kd6 61. Ka3 Kd5 62. Kb3 Kc5 63. Kc3 b4+ 64. Kb3 Kb5 65. Kb2 Kc4 66. Kc2 b3+ 67. Kd2 Kd4 68. Kd1 Kc3 69. Ke1 b2 70. Kf1 b1=Q+ 71. Kg2 Kd4 72. Kf3 Qe4+ 73. Kg3 Ke3 74. Kh2 Kf3 75. Kh1 Kg3+ 76. Kg1 Qg2#) 58. Ke3 {[%emt 0:00:04]} Nh8 {[%emt 0:00:04]} 59. Kd3 {[%emt 0:00:00]} Kc5 $1 {[%emt 0:00:01] ( -> ...Kb4)} 60. Kc3 {[%emt 0:00:04][%mdl 8192] [#]} (60. Ke4 $17) 60... Nf7 $1 {[%emt 0:00:01] Black mates.} 61. Kd3 {[%emt 0:00:01] [#]} Kb4 $1 {[%emt 0:00:01]} 62. Kd4 {[%emt 0:00:01]} Kxa4 {[%emt 0:00:01] Weighted Error Value: White=0.43/Black=0.25 (precise)} 0-1

[Event "Super United Croatia GCT Blitz 2022"]
[Site "Zagreb"]
[Date "2022.07.24"]
[Round "10"]
[White "Saric, Ivan"]
[Black "Vachier-Lagrave, Maxime"]
[Result "0-1"]
[ECO "B90"]
[WhiteElo "2680"]
[BlackElo "2760"]
[Annotator "TA"]
[PlyCount "124"]
[EventDate "2022.07.20"]
[EventType "tourn"]
[EventCountry "CRO"]
[SourceTitle "playchess.com"]
[Source "ChessBase"]
[SourceQuality "1"]
[TimeControl "300+2"]

{[%evp 15,124,8,16,21,16,16,28,20,18,16,26,24,46,29,71,0,72,0,18,0,77,54,87,85,133,93,85,72,78,86,90,25,262,12,18,22,37,32,63,57,147,153,151,167,162,147,143,89,89,89,334,6,3,-7,-19,-14,0,0,0,0,0,0,30,30,30,-18,-18,-25,-25,-25,-25,-25,-25,-25,0,-25,0,0,0,0,0,0,0,0,0,0,0,0,0,0,0,0,0,0,0,0,0,-1,0,0,0,0,0,-29972,-29974,-29979,-29980,-29977,-29980,-29980,-29981]} 1. e4 {[%emt 0:00:01]} c5 {[%emt 0:00:01]} 2. Nf3 {[%emt 0:00:01]} d6 {[%emt 0:00:01]} 3. d4 {[%emt 0:00:01]} cxd4 {[%emt 0:00:01]} 4. Nxd4 {[%emt 0:00:01]} Nf6 {[%emt 0:00:01]} 5. Nc3 {[%emt 0:00:01]} a6 {[%emt 0:00:00]} 6. f3 {[%emt 0:00:07]} e5 {[%emt 0:00:03]} 7. Nb3 {[%emt 0:00:01]} Be6 {[%emt 0:00:01]} 8. Be3 {[%emt 0:00:01]} h5 {[%emt 0:00:03]} 9. Nd5 {[%emt 0:00:03] B90: Sicilian Najdorf: Unusual White 6th moves, 6 Be3 Ng4 and 6 Be3 e5.} Bxd5 {[%emt 0:00:01]} 10. exd5 {[%emt 0:00:01]} Nbd7 {[%emt 0:00:03]} 11. Qd2 {[%emt 0:00:08] White has an edge.} g6 {[%emt 0:00:01]} 12. O-O-O {[%emt 0:00:29]} Bg7 {[%emt 0:00:01]} 13. Kb1 {[%emt 0:00:04]} Rc8 {[%emt 0:00:02]} 14. Be2 {[%emt 0:00:12]} O-O {[%emt 0:00:23]} 15. g4 {[%emt 0:00:07] [#]} Nb6 $146 {[%emt 0:00:40]} (15... hxg4 $11 {keeps the balance.} 16. fxg4 Nb6) ({Predecessor:} 15... Qc7 16. Rc1 Qb8 17. g5 Ne8 18. c4 b6 19. Qd1 Nc5 20. Nd2 b5 21. cxb5 Nc7 22. Bxc5 dxc5 {1-0 (41) Ivic,V (2497)-Kosakowski,J (2413) Konya 2018}) 16. Bg5 {[%emt 0:00:50]} (16. Qa5 $16 Nc4 17. Bxc4 Rxc4 18. g5) 16... hxg4 $1 $11 {[%emt 0:00:03]} 17. fxg4 {[%emt 0:00:12][%cal Bf3g4,Bg4g5][%mdl 32]} (17. h4 {feels hotter.} gxf3 18. Bxf3 Nc4 19. Qc1) 17... Qd7 {[%emt 0:01:11]} (17... Nc4 $11 {remains equal.} 18. Bxc4 Rxc4) 18. Bxf6 $16 {[%emt 0:00:02]} Bxf6 {[%emt 0:00:01]} 19. h4 {[%emt 0:00:03][%cal Bh2h4,Bh4h5][%mdl 32]} e4 {[%emt 0:00:06]} (19... Bg7 $142) 20. g5 {[%emt 0:00:06]} Be5 {[%emt 0:00:25][%cal Oe4e3]} 21. h5 {[%emt 0:00:18]} Nc4 {[%emt 0:00:01]} 22. Bxc4 {[%emt 0:00:02]} Rxc4 {[%emt 0:00:01]} 23. Qe2 {[%emt 0:00:23]} (23. Qe3 $16) 23... b5 $2 {[%emt 0:00:22]} (23... Rfc8 $11) 24. c3 $2 {[%emt 0:00:26]} ({Better is} 24. Na5 $1 $18) 24... e3 $1 $11 {[%emt 0:00:54]} 25. Qxe3 {[%emt 0:00:09] aiming for hxg6.} b4 {[%emt 0:00:01][%cal Rb4c3]} 26. Na5 {[%emt 0:00:17]} Rg4 {[%emt 0:00:18] White must now prevent ...bxc3.} 27. Nc6 $36 {[%emt 0:00:06][%mdl 2048] White is more active.} bxc3 {[%emt 0:00:03]} (27... Qf5+ $1 $14 28. Rd3 Qxg5) 28. Nxe5 $16 {[%emt 0:00:06]} dxe5 {[%emt 0:00:09]} (28... c2+ 29. Kxc2 dxe5 30. hxg6 Qf5+ 31. Rd3 $16 (31. Qd3 fxg6 32. Qxf5 gxf5 $14)) 29. Qxc3 {[%emt 0:00:06] And now hxg6 would win.} (29. bxc3 Rg2 30. Rd2 Rxd2 31. Qxd2 Qb5+ 32. Ka1 gxh5 $11) (29. Qxe5 Rc8 30. Rc1 (30. bxc3 $2 Qb5+ 31. Ka1 Rg2 $19) 30... Rg2 31. Rxc3 (31. hxg6 Rxb2+ 32. Ka1 Rxa2+ 33. Kxa2 Qa4+ 34. Kb1 Qb3+ 35. Ka1 Qb2#) 31... gxh5 $14) 29... Qf5+ {[%emt 0:00:05]} 30. Ka1 $1 {[%emt 0:00:03] Threatens to win with hxg6.} Rc8 {[%emt 0:00:03]} 31. Qb3 {[%emt 0:00:12]} ({White should play} 31. Qe1 {Strongly threatening hxg6.} Rxg5 32. Rf1) 31... gxh5 {[%emt 0:00:20]} 32. d6 {[%emt 0:00:18]} Rd4 $2 {[%emt 0:00:07]} (32... Qxg5 $16 33. Rhf1 Rgc4) 33. Rdf1 $2 {[%emt 0:00:33]} (33. Rxh5 {[#]} Rd3 $1 34. d7 Qxd7 $1 $15) ({Only move:} 33. Rxd4 $18 exd4 34. g6 Qxg6 35. d7) 33... Qe6 $1 $11 {[%emt 0:00:12]} ({Much less strong is} 33... Rf4 34. Rd1 Qe6 35. Qb6 $16 (35. Rxh5 Rd4 $11)) 34. Qf3 {[%emt 0:00:12]} h4 {[%emt 0:00:06]} 35. Qh5 {[%emt 0:00:10]} Ra4 {[%emt 0:00:07][%csl Ga4][%cal Re6a2]} 36. a3 {[%emt 0:00:07]} Rc3 {[%emt 0:00:07] Dancing on a razor blade.} 37. Qxf7+ $1 {[%emt 0:00:08]} (37. bxc3 {is a self mate.} Rxa3+ 38. Kb2 Qa2+ 39. Kc1 Rxc3+ 40. Kd1 Qc2+ 41. Ke1 Re3+) 37... Qxf7 {[%emt 0:00:01]} 38. Rxf7 {[%emt 0:00:00]} Rcxa3+ {[%emt 0:00:05]} 39. bxa3 {[%emt 0:00:02] White wants to mate with g6.} Kxf7 {[%emt 0:00:01][%mdl 4096] Endgame KR-KR} 40. Kb2 {[%emt 0:00:09]} (40. g6+ $142 $1 Kxg6 41. Rd1 Rxa3+ 42. Kb2) 40... Rg4 {[%emt 0:00:02]} 41. Kc3 {[%emt 0:00:01]} ({Don't play} 41. Rd1 Ke8 42. Rh1 Kd7 $17) 41... Ke6 {[%emt 0:00:01]} 42. g6 $1 {[%emt 0:00:03]} Kxd6 {[%emt 0:00:01]} 43. g7 $1 {[%emt 0:00:00]} Rxg7 {[%emt 0:00:05]} 44. Rxh4 {[%emt 0:00:01]} Kd5 {[%emt 0:00:02]} 45. Ra4 {[%emt 0:00:01]} Rg3+ {[%emt 0:00:01]} 46. Kd2 {[%emt 0:00:01]} Rg6 {[%emt 0:00:02]} 47. Ke3 {[%emt 0:00:01]} Re6 {[%emt 0:00:03]} 48. Ra5+ {[%emt 0:00:01]} Kc4 {[%emt 0:00:02]} 49. Ke4 {[%emt 0:00:01]} Kb3 {[%emt 0:00:00]} 50. Kd5 {[%emt 0:00:05]} Rb6 {[%emt 0:00:01] ( -> ...Rb5+)} 51. Ke4 {[%emt 0:00:05]} Rh6 {[%emt 0:00:07]} 52. Rxe5 {[%emt 0:00:03]} Kxa3 {[%emt 0:00:01]} 53. Kd3 {[%emt 0:00:02]} Kb3 {[%emt 0:00:01]} 54. Kd2 {[%emt 0:00:03]} Kb2 {[%emt 0:00:01]} 55. Rd5 {[%emt 0:00:02]} Rb6 {[%emt 0:00:03]} 56. Kd3 {[%emt 0:00:03]} Rb5 {[%emt 0:00:01]} 57. Rd6 {[%emt 0:00:01]} a5 {[%emt 0:00:01][%cal Ba6a5,Ba5a4,Ba4a3,Ba3a2][%mdl 32]} 58. Kc4 {[%emt 0:00:02]} Rb4+ {[%emt 0:00:01]} 59. Kd3 $2 {[%emt 0:00:01][%mdl 8192]} (59. Kc5 $11) 59... a4 {[%emt 0:00:02] Black mates.} 60. Rg6 {[%emt 0:00:02]} a3 {[%emt 0:00:01]} 61. Rg2+ {[%emt 0:00:00]} Kb3 {[%emt 0:00:01]} 62. Rg1 {[%emt 0:00:06]} a2 {[%emt 0:00:01] Quite a comeback for Black.  Weighted Error Value: White=0.34/Black=0.28 (precise)} 0-1